fUST/lending_fUST_20250724
["ID","MTS","AMOUNT","RATE_DAILY","PERIOD"]
[374502187,1753327840604,-526.0849725,0.00019178,2]
[374502189,1753327840614,-460.0,0.00019178,2]
[374502191,1753327840624,-460.0,0.00019178,2]
[374502193,1753327840634,-460.0,0.00019178,2]
[374502195,1753327840643,-460.0,0.00019178,2]
[374502197,1753327840655,-460.0,0.00019178,2]
[374502199,1753327840666,-460.0,0.00019178,2]
[374502201,1753327840675,-460.0,0.00019178,2]
[374502203,1753327840685,-484.22923534,0.00019178,2]
[374502205,1753327840694,-466.98934807,0.00019178,2]
[374502207,1753327840703,-460.0,0.00019178,2]
[374502209,1753327840712,-460.0,0.00019178,2]
[374502211,1753327840722,-460.0,0.00019178,2]
[374502214,1753327840733,-463.11919013,0.00019178,2]
[374502216,1753327840747,-464.32214727,0.00019178,2]
[374502218,1753327840758,-568.79664235,0.00019178,2]
[374502219,1753327840768,-583.20137718,0.00019178,2]
[374502221,1753327840777,-460.0,0.00019178,2]
[374502223,1753327840787,-463.75369938,0.00019178,2]
[374502225,1753327840798,-460.0,0.00019178,2]
[374502227,1753327840808,-460.0,0.00019178,2]
[374502229,1753327840818,-460.0,0.00019178,2]
[374502231,1753327840828,-460.0,0.00019178,2]
[374502233,1753327840838,-198.70647254,0.00019178,2]
[374502236,1753327840847,-461.80901554,0.00019178,2]
[374502237,1753327840857,-460.0,0.00019178,2]
[374502238,1753327840867,-460.0,0.00019178,2]
[374502239,1753327840877,-195.03883618,0.00019178,2]
[374502240,1753327840886,-460.0,0.00019178,2]
[374502241,1753327840895,-460.0,0.00019178,2]
[374502242,1753327840904,-460.0,0.00019178,2]
[374502243,1753327840913,-460.0,0.00019178,2]
[374502244,1753327840922,-460.0,0.00019178,2]
[374502245,1753327840932,-460.0,0.00019178,2]
[374502246,1753327840942,-460.0,0.00019178,2]
[374502247,1753327840954,-460.0,0.00019178,2]
[374502248,1753327840973,-460.0,0.00019178,2]
[374502249,1753327840991,-461.12172303,0.00019178,2]
[374502250,1753327841000,-460.0,0.00019178,2]
[374502251,1753327841011,-460.0,0.00019178,2]
[374502252,1753327841021,-460.0,0.00019178,2]
[374502253,1753327841030,-464.46800842,0.00019178,2]
[374502254,1753327841039,-460.0,0.00019178,2]
[374502255,1753327841049,-460.0,0.00019178,2]
[374502256,1753327841058,-468.6606273,0.00019178,2]
[374502257,1753327841070,-5107.84,0.00019178,2]
[374502258,1753327841079,-460.0,0.00019178,2]
[374502259,1753327841089,-460.0,0.00019178,2]
[374502260,1753327841098,-460.0,0.00019178,2]
[374502261,1753327841107,-460.0,0.00019178,2]
[374502262,1753327841116,-460.0,0.00019178,2]
[374502263,1753327841126,-460.0,0.00019178,2]
[374502264,1753327841135,-461.95564146,0.00019178,2]
[374502265,1753327841144,-460.0,0.00019178,2]
[374502266,1753327841154,-541.05189478,0.00019178,2]
[374502268,1753327841164,-460.0,0.00019178,2]
[374502269,1753327841173,-460.0,0.00019178,2]
[374502270,1753327841182,-460.0,0.00019178,2]
[374502272,1753327841191,-463.12765611,0.00019178,2]
[374502274,1753327841201,-460.0,0.00019178,2]
[374502276,1753327841210,-375.70183003,0.00019178,2]
[374502278,1753327841220,-460.0,0.00019178,2]
[374502280,1753327841229,-668.83,0.00019178,2]
[374502282,1753327841238,-460.0,0.00019178,2]
[374502284,1753327841247,-500.0,0.00019178,2]
[374502286,1753327841258,-500.0,0.00019178,2]
[374502288,1753327841267,-460.0,0.00019178,2]
[374502290,1753327841277,-3009.11,0.00019178,2]
[374502292,1753327841286,-460.0,0.00019178,2]
[374502294,1753327841296,-455.50399767,0.00019178,2]
[374502296,1753327841305,-460.0,0.00019178,2]
[374502298,1753327841315,-460.0,0.00019178,2]
[374502300,1753327841324,-460.0,0.00019178,2]
[374502302,1753327841333,-460.0,0.00019178,2]
[374502304,1753327841343,-460.0,0.00019178,2]
[374502306,1753327841352,-460.0,0.00019178,2]
[374502308,1753327841362,-1626.71,0.00019178,2]
[374502310,1753327841371,-460.0,0.00019178,2]
[374502312,1753327841380,-747.86,0.00019178,2]
[374502314,1753327841389,-460.0,0.00019178,2]
[374502316,1753327841398,-509.51,0.00019178,2]
[374502318,1753327841407,-460.0,0.00019178,2]
[374502320,1753327841417,-738.29,0.00019178,2]
[374502322,1753327841426,-460.0,0.00019178,2]
[374502324,1753327841435,-460.0,0.00019178,2]
[374502326,1753327841444,-469.61611987,0.00019178,2]
[374502328,1753327841454,-460.0,0.00019178,2]
[374502330,1753327841463,-460.0,0.00019178,2]
[374502332,1753327841472,-460.0,0.00019178,2]
[374502334,1753327841485,-575.49148594,0.00019178,2]
[374502336,1753327841493,-460.0,0.00019178,2]
[374502338,1753327841504,-460.0,0.00019178,2]
[374502340,1753327841514,-460.0,0.00019178,2]
[374502342,1753327841523,-460.0,0.00019178,2]
[374502344,1753327841532,-460.0,0.00019178,2]
[374502346,1753327841541,-460.0,0.00019178,2]
[374502348,1753327841554,-460.0,0.00019178,2]
[374502350,1753327841563,-460.0,0.00019178,2]
[374502352,1753327841572,-460.0,0.00019178,2]
[374502354,1753327841582,-460.0,0.00019178,2]
[374502356,1753327841591,-460.0,0.00019178,2]
[374502358,1753327841600,-460.0,0.00019178,2]
[374502360,1753327841609,-460.0,0.00019178,2]
[374502362,1753327841619,-460.0,0.00019178,2]
[374502364,1753327841628,-460.0,0.00019178,2]
[374502366,1753327841637,-460.0,0.00019178,2]
[374502368,1753327841647,-460.0,0.00019178,2]
[374502370,1753327841657,-460.0,0.00019178,2]
[374502372,1753327841667,-460.0,0.00019178,2]
[374502375,1753327841676,-460.0,0.00019178,2]
[374502377,1753327841685,-460.0,0.00019178,2]
[374502379,1753327841695,-460.0,0.00019178,2]
[374502381,1753327841705,-460.0,0.00019178,2]
[374502383,1753327841714,-460.0,0.00019178,2]
[374502385,1753327841724,-2609.09,0.00019178,2]
[374502387,1753327841735,-460.0,0.00019178,2]
[374502388,1753327841754,-1396.61,0.00019178,2]
[374502391,1753327841775,-502.720942,0.00019178,2]
[374502393,1753327841797,-460.0,0.00019178,2]
[374502395,1753327841818,-460.0,0.00019178,2]
[374502396,1753327841827,-460.0,0.00019178,2]
[374502399,1753327841837,-466.20110151,0.00019178,2]
[374502401,1753327841846,-460.0,0.00019178,2]
[374502403,1753327841856,-462.09998759,0.00019178,2]
[374502405,1753327841865,-460.0,0.00019178,2]
[374502406,1753327841875,-460.0,0.00019178,2]
[374502409,1753327841884,-163.52629931,0.00019178,2]
[374502410,1753327841893,-461.85701078,0.00019178,2]
[374502412,1753327841903,-460.0,0.00019178,2]
[374502414,1753327841912,-460.0,0.00019178,2]
[374502417,1753327841922,-460.0,0.00019178,2]
[374502418,1753327841931,-460.0,0.00019178,2]
[374502420,1753327841940,-460.0,0.00019178,2]
[374502423,1753327841952,-460.0,0.00019178,2]
[374502424,1753327841964,-460.0,0.00019178,2]
[374502427,1753327841974,-460.0,0.00019178,2]
[374502429,1753327841983,-460.0,0.00019178,2]
[374502430,1753327841992,-460.0,0.00019178,2]
[374502432,1753327842003,-599.65593453,0.00019178,2]
[374502435,1753327842014,-460.0,0.00019178,2]
[374502436,1753327842023,-460.0,0.00019178,2]
[374502438,1753327842033,-462.83367863,0.00019178,2]
[374502440,1753327842043,-460.0,0.00019178,2]
[374502443,1753327842053,-460.0,0.00019178,2]
[374502445,1753327842063,-460.0,0.00019178,2]
[374502446,1753327842072,-460.0,0.00019178,2]
[374502448,1753327842082,-460.0,0.00019178,2]
[374502450,1753327842091,-460.0,0.00019178,2]
[374502452,1753327842101,-460.0,0.00019178,2]
[374502455,1753327842110,-1953.96,0.00019178,2]
[374502456,1753327842119,-498.79196115,0.00019178,2]
[374502458,1753327842128,-450.78889359,0.00019178,2]
[374502461,1753327842138,-460.0,0.00019178,2]
[374502463,1753327842147,-443.61684811,0.00019178,2]
[374502464,1753327842157,-460.0,0.00019178,2]
[374502466,1753327842167,-218.68448043,0.00019178,2]
[374502469,1753327842176,-460.0,0.00019178,2]
[374502470,1753327842187,-460.0,0.00019178,2]
[374502473,1753327842196,-460.0,0.00019178,2]
[374502474,1753327842206,-460.0,0.00019178,2]
[374502477,1753327842216,-1304.77,0.00019178,2]
[374502478,1753327842227,-460.0,0.00019178,2]
[374502481,1753327842238,-460.0,0.00019178,2]
[374502482,1753327842247,-460.0,0.00019178,2]
[374502484,1753327842259,-461.51378854,0.00019178,2]
[374502486,1753327842268,-473.82,0.00019178,2]
[374502489,1753327842278,-460.0,0.00019178,2]
[374502491,1753327842290,-460.0,0.00019178,2]
[374502492,1753327842299,-460.0,0.00019178,2]
[374502495,1753327842311,-463.41241818,0.00019178,2]
[374502496,1753327842320,-460.0,0.00019178,2]
[374502497,1753327842329,-543.18304701,0.00019178,2]
[374502498,1753327842339,-460.0,0.00019178,2]
[374502499,1753327842348,-460.0,0.00019178,2]
[374502500,1753327842359,-462.4968254,0.00019178,2]
[374502501,1753327842369,-460.0,0.00019178,2]
[374502502,1753327842379,-461.78116036,0.00019178,2]
[374502503,1753327842389,-460.0,0.00019178,2]
[374502504,1753327842398,-460.0,0.00019178,2]
[374502505,1753327842407,-463.04020801,0.00019178,2]
[374502506,1753327842419,-460.0,0.00019178,2]
[374502507,1753327842428,-460.0,0.00019178,2]
[374502509,1753327842437,-553.93,0.00019178,2]
[374502510,1753327842446,-460.0,0.00019178,2]
[374502511,1753327842455,-4724.36,0.00019178,2]
[374502512,1753327842465,-460.0,0.00019178,2]
[374502513,1753327842474,-460.0,0.00019178,2]
[374502514,1753327842484,-460.0,0.00019178,2]
[374502515,1753327842493,-460.0,0.00019178,2]
[374502516,1753327842504,-460.0,0.00019178,2]
[374502517,1753327842513,-1337.53,0.00019178,2]
[374502518,1753327842523,-604.77,0.00019178,2]
[374502519,1753327842532,-460.0,0.00019178,2]
[374502520,1753327842542,-460.0,0.00019178,2]
[374502521,1753327842551,-460.0,0.00019178,2]
[374502522,1753327842560,-460.0,0.00019178,2]
[374502523,1753327842570,-460.0,0.00019178,2]
[374502524,1753327842579,-460.0,0.00019178,2]
[374502525,1753327842589,-460.0,0.00019178,2]
[374502526,1753327842598,-466.14026298,0.00019178,2]
[374502527,1753327842608,-460.0,0.00019178,2]
[374502528,1753327842617,-1910.87,0.00019178,2]
[374502529,1753327842626,-460.0,0.00019178,2]
[374502530,1753327842636,-461.49204769,0.00019178,2]
[374502531,1753327842645,-462.86795479,0.00019178,2]
[374502532,1753327842654,-460.0,0.00019178,2]
[374502533,1753327842663,-461.13877449,0.00019178,2]
[374502534,1753327842672,-460.0,0.00019178,2]
[374502535,1753327842681,-460.0,0.00019178,2]
[374502536,1753327842691,-460.0,0.00019178,2]
[374502537,1753327842701,-460.0,0.00019178,2]
[374502538,1753327842710,-464.37755864,0.00019178,2]
[374502539,1753327842719,-460.0,0.00019178,2]
[374502540,1753327842729,-1127.86,0.00019178,2]
[374502541,1753327842738,-488.35,0.00019178,2]
[374502542,1753327842748,-460.0,0.00019178,2]
[374502543,1753327842758,-652.17,0.00019178,2]
[374502544,1753327842768,-463.2607434,0.00019178,2]
[374502545,1753327842777,-641.77,0.00019178,2]
[374502546,1753327842786,-460.0,0.00019178,2]
[374502547,1753327842796,-460.0,0.00019178,2]
[374502548,1753327842807,-906.49,0.00019178,2]
[374502549,1753327842817,-460.0,0.00019178,2]
[374502550,1753327842827,-460.0,0.00019178,2]
[374502551,1753327842837,-460.0,0.00019178,2]
[374502552,1753327842847,-775.15,0.00019178,2]
[374502553,1753327842857,-461.70183694,0.00019178,2]
[374502554,1753327842974,-460.0,0.00019178,2]
[374502556,1753327842984,-571.35313329,0.00019178,2]
[374502558,1753327842995,-460.0,0.00019178,2]
[374502559,1753327843006,-460.0,0.00019178,2]
[374502560,1753327843015,-460.0,0.00019178,2]
[374502561,1753327843025,-460.0,0.00019178,2]
[374502563,1753327843036,-800.066119,0.00019178,2]
[374502564,1753327843047,-500.0,0.00019178,2]
[374502565,1753327843056,-5000.0,0.00019178,2]
[374502566,1753327843066,-5000.0,0.00019178,2]
[374502567,1753327843076,-5000.0,0.00019178,2]
[374502569,1753327843087,-3042.1131575,0.00019178,2]
[374502570,1753327843096,-666.0,0.00019178,2]
[374502572,1753327843105,-4157.81540238,0.00019229,2]
[374502573,1753327843115,-25000.0,0.00019306,2]
[374502575,1753327843124,-151.0,0.00019306,2]
[374502577,1753327843134,-24193.01915981,0.00019306,2]
[374502578,1753327843143,-151.0,0.00019306,2]
[374502580,1753327843153,-151.0,0.00019306,2]
[374502581,1753327843162,-151.0,0.00019306,2]
[374502582,1753327843172,-151.0,0.00019306,2]
[374502583,1753327843182,-151.0,0.00019306,2]
[374502584,1753327843192,-151.0,0.00019306,2]
[374502585,1753327843201,-151.0,0.00019306,2]
[374502586,1753327843211,-151.0,0.00019306,2]
[374502587,1753327843220,-151.0,0.00019306,2]
[374502588,1753327843229,-151.0,0.00019306,2]
[374502589,1753327843238,-151.0,0.00019306,2]
[374502590,1753327843248,-151.0,0.00019306,2]
[374502591,1753327843260,-151.0,0.00019306,2]
[374502592,1753327843269,-151.0,0.00019306,2]
[374502593,1753327843278,-191.73748684,0.00019306,2]
[374502594,1753327843287,-151.0,0.00019306,2]
[374502595,1753327843297,-151.0,0.00019306,2]
[374502596,1753327843306,-151.0,0.00019306,2]
[374502597,1753327843315,-1601.36500808,0.00019306,2]
[374502598,1753327843325,-151.0,0.00019306,2]
[374502599,1753327843335,-152.19962789,0.00019306,2]
[374502600,1753327843344,-151.0,0.00019306,2]
[374502601,1753327843354,-152.90526298,0.00019306,2]
[374502602,1753327843363,-151.0,0.00019306,2]
[374502603,1753327843372,-151.0,0.00019306,2]
[374502604,1753327843382,-151.0,0.00019306,2]
[374502605,1753327843392,-151.0,0.00019306,2]
[374502606,1753327843401,-151.0,0.00019306,2]
[374502607,1753327843410,-215.0738,0.00019306,2]
[374502608,1753327843420,-151.0,0.00019306,2]
[374502609,1753327843429,-151.65869826,0.00019306,2]
[374502610,1753327843439,-151.0,0.00019306,2]
[374502611,1753327843448,-151.0,0.00019306,2]
[374502612,1753327843458,-151.0,0.00019306,2]
[374502613,1753327843467,-151.0,0.00019306,2]
[374502614,1753327843477,-151.0,0.00019306,2]
[374502615,1753327843486,-151.0,0.00019306,2]
[374502616,1753327843496,-151.0,0.00019306,2]
[374502617,1753327843506,-151.0,0.00019306,2]
[374502618,1753327843515,-151.0,0.00019306,2]
[374502619,1753327843524,-151.0,0.00019306,2]
[374502620,1753327843533,-151.0,0.00019306,2]
[374502621,1753327843543,-154.78684829,0.00019306,2]
[374502622,1753327843552,-100000.0,0.00019329,2]
[374502623,1753327843562,-4034.0,0.00019335,2]
[374502624,1753327843572,-4034.0,0.00019341,2]
[374502625,1753327843581,-501.57043918,0.00019373,2]
[374502626,1753327843590,-460.0,0.00019452,2]
[374502627,1753327843600,-460.0,0.00019452,2]
[374502628,1753327843609,-460.0,0.00019452,2]
[374502629,1753327843619,-460.0,0.00019452,2]
[374502630,1753327843629,-342.61762603,0.00019452,2]
[374502631,1753327843639,-460.0,0.00019452,2]
[374502632,1753327843648,-256.59136855,0.00019452,2]
[374502633,1753327843658,-460.0,0.00019452,2]
[374502634,1753327843668,-460.0,0.00019452,2]
[374502635,1753327843678,-1580.76,0.00019452,2]
[374502636,1753327843687,-460.0,0.00019452,2]
[374502637,1753327843697,-460.0,0.00019452,2]
[374502638,1753327843706,-460.0,0.00019452,2]
[374502639,1753327843716,-460.0,0.00019452,2]
[374502640,1753327843726,-272.83749182,0.00019452,2]
[374502641,1753327843736,-312.79932197,0.00019452,2]
[374502642,1753327843745,-460.0,0.00019452,2]
[374502643,1753327843758,-460.0,0.00019452,2]
[374502644,1753327843768,-755.48,0.00019452,2]
[374502645,1753327843777,-460.0,0.00019452,2]
[374502646,1753327843787,-284.84734229,0.00019452,2]
[374502647,1753327843797,-460.0,0.00019452,2]
[374502648,1753327843806,-466.46983181,0.00019452,2]
[374502649,1753327843815,-464.29558711,0.00019452,2]
[374502650,1753327843825,-460.0,0.00019452,2]
[374502651,1753327843835,-460.0,0.00019452,2]
[374502652,1753327843845,-460.0,0.00019452,2]
[374502653,1753327843855,-460.0,0.00019452,2]
[374502654,1753327843864,-460.0,0.00019452,2]
[374502655,1753327843873,-460.0,0.00019452,2]
[374502656,1753327843883,-460.0,0.00019452,2]
[374502657,1753327843893,-460.0,0.00019452,2]
[374502658,1753327843903,-460.0,0.00019452,2]
[374502659,1753327843913,-460.0,0.00019452,2]
[374502660,1753327843922,-460.0,0.00019452,2]
[374502661,1753327843931,-460.0,0.00019452,2]
[374502662,1753327843940,-460.0,0.00019452,2]
[374502663,1753327843951,-460.0,0.00019452,2]
[374502664,1753327843963,-460.0,0.00019452,2]
[374502665,1753327843973,-460.0,0.00019452,2]
[374502666,1753327843982,-460.0,0.00019452,2]
[374502667,1753327843992,-460.0,0.00019452,2]
[374502668,1753327844002,-475.18046806,0.00019452,2]
[374502669,1753327844013,-460.0,0.00019452,2]
[374502670,1753327844022,-460.0,0.00019452,2]
[374502671,1753327844033,-463.39559709,0.00019452,2]
[374502672,1753327844042,-460.0,0.00019452,2]
[374502673,1753327844051,-460.0,0.00019452,2]
[374502674,1753327844061,-538.2637227,0.00019452,2]
[374502675,1753327844070,-461.24917933,0.00019452,2]
[374502676,1753327844079,-460.0,0.00019452,2]
[374502677,1753327844089,-460.0,0.00019452,2]
[374502678,1753327844098,-460.0,0.00019452,2]
[374502679,1753327844107,-460.0,0.00019452,2]
[374502680,1753327844117,-464.16831374,0.00019452,2]
[374502682,1753327844126,-460.0,0.00019452,2]
[374502683,1753327844136,-575.29280045,0.00019452,2]
[374502684,1753327844145,-460.0,0.00019452,2]
[374502685,1753327844155,-460.0,0.00019452,2]
[374502686,1753327844164,-460.0,0.00019452,2]
[374502687,1753327844173,-460.0,0.00019452,2]
[374502688,1753327844183,-460.0,0.00019452,2]
[374502689,1753327844192,-460.0,0.00019452,2]
[374502690,1753327844203,-195.65,0.00019452,2]
[374502691,1753327844213,-460.0,0.00019452,2]
[374502692,1753327844222,-460.0,0.00019452,2]
[374502693,1753327844231,-460.0,0.00019452,2]
[374502694,1753327844241,-460.0,0.00019452,2]
[374502695,1753327844251,-460.0,0.00019452,2]
[374502696,1753327844262,-460.0,0.00019452,2]
[374502697,1753327844272,-460.0,0.00019452,2]
[374502698,1753327844282,-460.0,0.00019452,2]
[374502699,1753327844291,-460.0,0.00019452,2]
[374502700,1753327844301,-460.0,0.00019452,2]
[374502701,1753327844311,-460.0,0.00019452,2]
[374502702,1753327844320,-460.0,0.00019452,2]
[374502703,1753327844330,-460.0,0.00019452,2]
[374502704,1753327844339,-460.0,0.00019452,2]
[374502705,1753327844349,-460.0,0.00019452,2]
[374502706,1753327844358,-460.0,0.00019452,2]
[374502707,1753327844367,-460.0,0.00019452,2]
[374502708,1753327844377,-5107.84,0.00019452,2]
[374502709,1753327844387,-266.20078983,0.00019452,2]
[374502710,1753327844396,-460.0,0.00019452,2]
[374502711,1753327844406,-460.0,0.00019452,2]
[374502712,1753327844415,-460.0,0.00019452,2]
[374502713,1753327844424,-460.0,0.00019452,2]
[374502714,1753327844434,-460.0,0.00019452,2]
[374502715,1753327844443,-461.95293546,0.00019452,2]
[374502716,1753327844452,-668.83,0.00019452,2]
[374502717,1753327844461,-3009.11,0.00019452,2]
[374502718,1753327844471,-460.0,0.00019452,2]
[374502719,1753327844480,-460.0,0.00019452,2]
[374502720,1753327844490,-460.0,0.00019452,2]
[374502721,1753327844499,-460.0,0.00019452,2]
[374502722,1753327844509,-460.0,0.00019452,2]
[374502723,1753327844518,-1296.90771908,0.00019452,2]
[374502724,1753327844648,-329.80228092,0.00019452,2]
[374502725,1753327844658,-123.87015453,0.00019452,2]
[374502732,1753327845019,-336.12984547,0.00019452,2]
[374502733,1753327845028,-487.0700206,0.00019452,2]
[374502734,1753327845042,-260.7899794,0.00019452,2]
[374502735,1753327845051,-509.51,0.00019452,2]
[374502736,1753327845060,-460.0,0.00019452,2]
[374502737,1753327845069,-738.29,0.00019452,2]
[374502738,1753327845078,-460.0,0.00019452,2]
[374502739,1753327845087,-460.0,0.00019452,2]
[374502740,1753327845096,-460.0,0.00019452,2]
[374502741,1753327845105,-488.29505013,0.00019452,2]
[374502742,1753327845114,-460.0,0.00019452,2]
[374502743,1753327845123,-460.0,0.00019452,2]
[374502744,1753327845132,-460.0,0.00019452,2]
[374502745,1753327845141,-460.0,0.00019452,2]
[374502746,1753327845150,-460.0,0.00019452,2]
[374502747,1753327845159,-460.0,0.00019452,2]
[374502748,1753327845167,-460.0,0.00019452,2]
[374502749,1753327845176,-460.0,0.00019452,2]
[374502750,1753327845185,-460.0,0.00019452,2]
[374502751,1753327845194,-460.0,0.00019452,2]
[374502752,1753327845203,-460.0,0.00019452,2]
[374502753,1753327845213,-468.35385978,0.00019452,2]
[374502754,1753327845222,-460.0,0.00019452,2]
[374502755,1753327845231,-2609.09,0.00019452,2]
[374502756,1753327845240,-460.0,0.00019452,2]
[374502757,1753327845249,-460.0,0.00019452,2]
[374502758,1753327845258,-461.7462564,0.00019452,2]
[374502759,1753327845266,-465.58816808,0.00019452,2]
[374502760,1753327845276,-460.0,0.00019452,2]
[374502761,1753327845285,-460.0,0.00019452,2]
[374502762,1753327845294,-460.0,0.00019452,2]
[374502763,1753327845303,-460.0,0.00019452,2]
[374502764,1753327845312,-460.0,0.00019452,2]
[374502765,1753327845321,-460.0,0.00019452,2]
[374502766,1753327845330,-460.0,0.00019452,2]
[374502767,1753327845339,-460.0,0.00019452,2]
[374502768,1753327845348,-460.0,0.00019452,2]
[374502769,1753327845357,-460.0,0.00019452,2]
[374502770,1753327845366,-460.0,0.00019452,2]
[374502771,1753327845375,-1953.96,0.00019452,2]
[374502772,1753327845386,-460.0,0.00019452,2]
[374502773,1753327845395,-335.41562237,0.00019452,2]
[374502774,1753327845404,-460.0,0.00019452,2]
[374502775,1753327845413,-460.0,0.00019452,2]
[374502776,1753327845422,-1304.77,0.00019452,2]
[374502777,1753327845431,-460.0,0.00019452,2]
[374502778,1753327845441,-473.82,0.00019452,2]
[374502779,1753327845450,-460.0,0.00019452,2]
[374502780,1753327845459,-460.0,0.00019452,2]
[374502781,1753327845469,-460.0,0.00019452,2]
[374502782,1753327845478,-460.0,0.00019452,2]
[374502783,1753327845487,-460.0,0.00019452,2]
[374502784,1753327845496,-460.0,0.00019452,2]
[374502785,1753327845506,-553.93,0.00019452,2]
[374502786,1753327845515,-460.0,0.00019452,2]
[374502787,1753327845525,-4724.36,0.00019452,2]
[374502788,1753327845533,-460.0,0.00019452,2]
[374502789,1753327845543,-466.58084196,0.00019452,2]
[374502790,1753327845552,-1337.53,0.00019452,2]
[374502791,1753327845562,-460.0,0.00019452,2]
[374502792,1753327845571,-460.0,0.00019452,2]
[374502793,1753327845580,-604.77,0.00019452,2]
[374502794,1753327845590,-460.0,0.00019452,2]
[374502795,1753327845600,-460.0,0.00019452,2]
[374502796,1753327845610,-460.0,0.00019452,2]
[374502797,1753327845619,-1910.87,0.00019452,2]
[374502798,1753327845630,-460.0,0.00019452,2]
[374502799,1753327845639,-460.0,0.00019452,2]
[374502800,1753327845648,-460.0,0.00019452,2]
[374502801,1753327845658,-460.0,0.00019452,2]
[374502802,1753327845667,-460.0,0.00019452,2]
[374502803,1753327845677,-460.0,0.00019452,2]
[374502804,1753327845687,-460.0,0.00019452,2]
[374502805,1753327845696,-1127.86,0.00019452,2]
[374502806,1753327845706,-488.35,0.00019452,2]
[374502807,1753327845716,-460.0,0.00019452,2]
[374502808,1753327845726,-652.17,0.00019452,2]
[374502809,1753327845736,-641.77,0.00019452,2]
[374502810,1753327845745,-460.0,0.00019452,2]
[374502811,1753327845756,-906.49,0.00019452,2]
[374502812,1753327845766,-460.0,0.00019452,2]
[374502813,1753327845776,-460.0,0.00019452,2]
[374502814,1753327845786,-775.15,0.00019452,2]
[374502815,1753327845796,-460.0,0.00019452,2]
[374502816,1753327845805,-460.0,0.00019452,2]
[374502817,1753327845814,-460.0,0.00019452,2]
[374502818,1753327845825,-500.0,0.00019452,2]
[374502819,1753327845834,-1057.0,0.00019468,2]
[374502820,1753327845843,-4034.0,0.00019487,2]
[374502821,1753327845853,-4034.0,0.00019521,2]
[374502822,1753327845862,-4034.0,0.00019523,2]
[374502823,1753327845872,-942.5601236,0.00019557,2]
[374502824,1753327845881,-156.0,0.00019562,3]
[374502825,1753327845891,-12624.810388,0.00019572,2]
[374502826,1753327845900,-215.88777038,0.00019572,2]
[374502827,1753327845910,-231.16387093,0.00019572,2]
[374502828,1753327845921,-526.24749348,0.00019572,2]
[374502829,1753327845930,-476.79463412,0.00019572,2]
[374502830,1753327845939,-160.0,0.00019572,2]
[374502831,1753327845951,-160.0,0.00019572,2]
[374502832,1753327845960,-214.7213231,0.00019578,2]
[374502834,1753327845970,-470.922381,0.00019599,2]
[374502835,1753327845980,-153.0,0.00019616,2]
[374502836,1753327845990,-153.0,0.00019616,2]
[374502837,1753327846000,-153.0,0.00019616,2]
[374502838,1753327846010,-153.0,0.00019616,2]
[374502839,1753327846019,-187.90017064,0.00019655,2]
[374502840,1753327846030,-4034.0,0.00019689,2]
[374502841,1753327846040,-1057.0,0.00019703,2]
[374502842,1753327846050,-4034.0,0.00019723,2]